bitfinex/quotes_BTCUSD_20240723
["timestamp","ask_amount","ask_price","bid_price","bid_amount"]
[1721768928027,0.18120773,66002.0,66001.0,1.71445926]
[1721768928140,0.18120773,66002.0,66001.0,1.71645926]
[1721768928787,0.18120773,66002.0,66001.0,1.83945926]
[1721768929358,0.18120773,66002.0,66001.0,1.72573136]
[1721768929699,0.18120773,66002.0,66001.0,1.48443426]
[1721768930143,0.18120773,66002.0,66001.0,1.72573331]
[1721768930346,0.18120773,66002.0,66001.0,1.50860691]
[1721768930549,0.18120773,66002.0,66001.0,2.12621238]
[1721768933792,0.18120773,66002.0,66001.0,2.12620916]
[1721768934658,0.18120773,66002.0,66001.0,2.12712216]
[1721768934867,0.18203773,66002.0,66001.0,2.12712216]
[1721768937174,0.18203773,66002.0,66001.0,1.94037337]
[1721768937436,0.18203773,66002.0,66001.0,2.46509849]
[1721768937803,0.18203773,66002.0,66001.0,2.55482198]
[1721768938961,0.06478934,66002.0,66001.0,2.60969849]
[1721768939166,0.06478934,66002.0,66001.0,2.83240807]
[1721768940645,0.06478934,66002.0,66001.0,2.83231361]
[1721768941051,0.06478934,66002.0,66001.0,2.9669181]
[1721768941256,3.4e-07,66002.0,66001.0,3.13533861]
[1721768941707,3.4e-07,66002.0,66001.0,3.43836361]
[1721768942665,3.4e-07,66002.0,66001.0,3.55977361]
[1721768942868,0.1437,66019.0,66018.0,1.413261]
[1721768943150,0.1437,66019.0,66018.0,1.56206935]
[1721768943305,0.44093655,66025.0,66019.0,0.102]
[1721768943306,0.0828,66025.0,66019.0,0.102]
[1721768943506,0.00083,66026.0,66025.0,0.201457]
[1721768943791,0.00083,66026.0,66025.0,1.38503026]
[1721768944030,0.00083,66026.0,66025.0,2.42519665]
[1721768944243,0.00083,66026.0,66025.0,2.33547726]
[1721768944558,0.00083,66026.0,66025.0,2.33347726]
[1721768944806,0.00083,66026.0,66025.0,2.43719665]
[1721768944980,0.00083,66026.0,66025.0,2.42319665]
[1721768945183,0.00083,66026.0,66025.0,2.3507149]
[1721768945448,0.00083,66026.0,66025.0,2.36472345]
[1721768945715,0.00083,66026.0,66025.0,2.41720665]
[1721768945888,0.00083,66026.0,66025.0,2.31147726]
[1721768946042,0.00083,66026.0,66025.0,2.40119665]
[1721768946242,0.00083,66026.0,66025.0,2.52869523]
[1721768946447,0.00083,66026.0,66025.0,2.24529587]
[1721768946886,0.00083,66026.0,66025.0,2.58115529]
[1721768947089,0.00083,66026.0,66025.0,2.1780779]
[1721768947453,0.002,66029.0,66028.0,0.05]
[1721768947662,0.002,66029.0,66028.0,2.76944066]
[1721768947867,0.002,66029.0,66028.0,2.68056806]
[1721768948268,0.002,66029.0,66028.0,2.87144066]
[1721768948420,0.002,66029.0,66028.0,2.65805438]
[1721768948963,0.002,66029.0,66028.0,2.97495538]
[1721768949137,0.002,66029.0,66028.0,2.58253966]
[1721768949288,0.002,66029.0,66028.0,2.88544066]
[1721768949488,0.002,66029.0,66028.0,2.58253966]
[1721768949945,0.002,66029.0,66028.0,2.88544066]
[1721768950143,0.002,66029.0,66028.0,2.64962659]
[1721768950348,0.002,66029.0,66028.0,2.05800926]
[1721768950553,0.002,66029.0,66028.0,2.31374357]
[1721768950793,0.002,66029.0,66028.0,2.32774357]
[1721768951111,0.002,66029.0,66028.0,2.31311601]
[1721768951308,0.002,66029.0,66028.0,2.38020576]
[1721768951508,0.002,66029.0,66028.0,2.1895612]
[1721768951743,0.002,66029.0,66028.0,2.37820576]
[1721768952154,0.002,66029.0,66028.0,2.7140297]
[1721768952676,0.002,66029.0,66028.0,2.65985739]
[1721768952889,0.002,66029.0,66028.0,2.66185739]
[1721768953075,0.002,66029.0,66028.0,2.77611383]
[1721768953280,0.002,66029.0,66028.0,2.47321283]
[1721768953712,0.002,66029.0,66028.0,2.47317609]
[1721768954285,0.002,66029.0,66028.0,2.47316353]
[1721768955265,0.002,66029.0,66028.0,2.47314691]
[1721768956271,0.002,66029.0,66028.0,2.59477028]
[1721768956909,0.002,66029.0,66028.0,1.89207391]
[1721768957085,0.002,66029.0,66028.0,2.40612525]
[1721768957268,0.00854,66030.0,66029.0,1.515036]
[1721768957477,0.00854,66030.0,66029.0,2.38713475]
[1721768957930,0.00854,66030.0,66029.0,2.04931042]
[1721768958326,0.00854,66030.0,66029.0,2.3851362]
[1721768958489,0.00854,66030.0,66029.0,2.6880332]
[1721768959103,0.00854,66030.0,66029.0,2.63503144]
[1721768959343,0.00854,66030.0,66029.0,2.87614025]
[1721768960071,0.00854,66030.0,66029.0,2.87814025]
[1721768960393,0.00854,66030.0,66029.0,2.89213904]
[1721768961271,0.00854,66030.0,66029.0,2.92894982]
[1721768963183,0.00854,66030.0,66029.0,2.83967536]
[1721768965237,0.00854,66030.0,66029.0,2.92893014]
[1721768965638,0.00854,66030.0,66029.0,3.15403014]
[1721768965862,0.00854,66030.0,66029.0,3.06477536]
[1721768966063,0.0607,66041.0,66040.0,1.512807]
[1721768966285,0.0607,66041.0,66040.0,1.90859024]
[1721768966588,0.0607,66041.0,66040.0,1.80859024]
[1721768967422,0.0607,66041.0,66040.0,1.82558225]
[1721768968555,0.0607,66041.0,66040.0,1.62856234]
[1721768968756,0.1383,66041.0,66040.0,1.62856234]
[1721768970560,0.1383,66041.0,66040.0,1.62856772]
[1721768971169,0.1383,66041.0,66040.0,1.8172088]
[1721768971364,0.1383,66041.0,66040.0,1.86964595]
[1721768972409,0.1383,66041.0,66040.0,1.8172088]
[1721768972966,0.1383,66041.0,66040.0,1.5143628]
[1721768973171,0.1383,66041.0,66040.0,1.52328778]
[1721768978125,0.1383,66041.0,66040.0,0.8856708]
[1721768978535,0.1383,66041.0,66040.0,1.4913628]
[1721768979716,0.1383,66041.0,66040.0,1.30272172]
[1721768980863,0.1383,66041.0,66040.0,0.99987572]
[1721768981064,0.1383,66041.0,66040.0,0.14276072]
[1721768981997,0.289721,66041.0,66040.0,0.14276072]
[1721768982158,0.592563,66041.0,66040.0,0.14276072]
[1721768983452,0.73958291,66041.0,66040.0,0.017]
[1721768983655,1.04242491,66041.0,66040.0,0.017]
[1721768983810,1.12972491,66041.0,66040.0,0.017]
[1721768984005,1.43256491,66041.0,66040.0,0.017]
[1721768984213,1.34526491,66041.0,66040.0,0.008]
[1721768984991,1.34526491,66041.0,66030.0,0.151446]
[1721768984992,0.151435,66035.0,66030.0,0.151446]
[1721768985203,0.1404,66033.0,66031.0,0.12579023]
[1721768985407,0.1404,66033.0,66032.0,0.12579023]
[1721768985603,0.44328,66033.0,66032.0,0.12579023]
[1721768986210,0.44328,66033.0,66032.0,0.27723123]
[1721768986388,0.44328,66033.0,66032.0,0.12579023]
[1721768986831,0.44328,66033.0,66032.0,0.13079023]
[1721768987263,0.44328,66033.0,66032.0,0.13079044]
[1721768987457,0.44328,66033.0,66032.0,0.28223144]
[1721768987873,0.44328,66033.0,66032.0,0.28723144]
[1721768988308,0.44328,66033.0,66032.0,0.59011444]
[1721768990637,0.44328,66033.0,66032.0,0.89299742]
[1721768990810,0.44328,66033.0,66032.0,0.89299741]
[1721768991702,0.44328,66033.0,66032.0,1.19588041]
[1721768992081,0.37978,66033.0,66032.0,1.19588041]
[1721768992258,0.37978,66033.0,66032.0,1.07009]
[1721768993081,0.37978,66033.0,66032.0,0.767207]
[1721768994019,0.37978,66033.0,66032.0,0.464324]
[1721768994221,0.37978,66033.0,66032.0,0.767207]
[1721768995923,0.30288,66033.0,66032.0,1.46000991]
[1721768996276,0.30288,66033.0,66032.0,1.80174443]
[1721768996509,0.30288,66033.0,66032.0,2.12710015]
[1721768996724,0.30288,66033.0,66032.0,2.059682]
[1721768996978,0.30288,66033.0,66032.0,2.054682]
[1721768997247,0.30288,66033.0,66032.0,1.94289291]
[1721768997419,0.30288,66033.0,66032.0,2.13102159]
[1721768997656,0.30288,66033.0,66032.0,2.14502159]
[1721768998690,0.30288,66033.0,66032.0,2.14702159]
[1721768999229,0.30288,66033.0,66032.0,2.48286453]
[1721768999857,0.30372,66033.0,66032.0,2.48286453]
[1721769000196,0.30372,66033.0,66032.0,2.14502159]
[1721769000554,0.30372,66033.0,66032.0,2.48286343]
[1721769001193,0.30372,66033.0,66032.0,2.1470205]
[1721769001401,0.30372,66033.0,66032.0,2.48086343]
[1721769001633,0.30372,66033.0,66032.0,2.48286343]
[1721769002245,0.30372,66033.0,66032.0,2.1470205]
[1721769002562,0.031128,66033.0,66032.0,3.60339203]
[1721769002780,0.00854,66055.0,66048.0,1.412645]
[1721769003033,0.00854,66055.0,66048.0,1.92680623]
[1721769003862,0.00854,66055.0,66048.0,1.92676647]
[1721769004264,0.00854,66055.0,66048.0,1.88189526]
[1721769004743,0.15584,66049.0,66048.0,1.32257593]
[1721769005748,0.15584,66049.0,66048.0,1.33657593]
[1721769006493,0.15584,66049.0,66048.0,1.31357593]
[1721769007070,0.15584,66049.0,66048.0,1.31358707]
[1721769009277,0.09194,66049.0,66048.0,1.31358707]
[1721769009475,0.09194,66049.0,66048.0,1.01077707]
[1721769010701,0.09194,66049.0,66048.0,0.40515707]
[1721769010901,0.15344,66049.0,66048.0,0.028]
[1721769011515,0.15334,66049.0,66048.0,0.179405]
[1721769011711,0.15334,66049.0,66048.0,0.165405]
[1721769011969,0.15334,66049.0,66047.0,0.151406]
[1721769013102,0.15334,66049.0,66048.0,0.007]
[1721769013305,0.15334,66049.0,66046.0,0.151409]
[1721769014401,0.15334,66049.0,66047.0,0.007]
[1721769015560,0.15334,66049.0,66046.0,0.159409]
[1721769015756,0.146,66048.0,66046.0,0.008]
[1721769015958,0.01044,66049.0,66046.0,0.007]
[1721769015959,0.146,66047.0,66046.0,0.007]
[1721769016273,0.903035,66047.0,66046.0,0.007]
[1721769016485,1.05005491,66047.0,66046.0,0.007]
[1721769016663,1.05005491,66047.0,66037.0,0.15143]
[1721769016664,0.08,66040.0,66037.0,0.15143]
[1721769016855,0.08,66040.0,66036.0,0.07348942]
[1721769017069,0.08,66040.0,66038.0,0.151427]
[1721769017406,0.08,66040.0,66037.0,0.15143]
[1721769017805,0.0651,66039.0,66036.0,0.07348942]
[1721769017980,0.0651,66039.0,66036.0,0.08448942]
[1721769018390,0.0651,66039.0,66036.0,0.07348942]
[1721769018545,0.0651,66039.0,66036.0,0.22492042]
[1721769018750,0.0651,66039.0,66037.0,0.011]
[1721769019448,0.0651,66039.0,66037.0,0.162429]
[1721769019859,0.0651,66039.0,66038.0,0.151427]
[1721769020086,0.0651,66039.0,66038.0,0.454282]
[1721769020298,0.08,66040.0,66039.0,0.454276]
[1721769020511,0.0603,66043.0,66042.0,0.151418]
[1721769020716,0.0603,66043.0,66042.0,0.757092]
[1721769021589,0.0603,66043.0,66042.0,0.454255]
[1721769021789,0.0603,66043.0,66042.0,0.757092]
[1721769021998,0.0603,66043.0,66042.0,0.765092]
[1721769022732,0.0603,66043.0,66042.0,0.772092]
[1721769024295,0.0603,66043.0,66042.0,0.89786456]
[1721769025030,0.0774,66048.0,66047.0,0.302814]
[1721769025233,0.0774,66048.0,66047.0,0.757035]
[1721769025408,0.0774,66048.0,66047.0,0.88279838]
[1721769025546,0.0774,66048.0,66047.0,1.18561238]
[1721769026386,0.0774,66048.0,66047.0,1.18661238]
[1721769026781,0.0774,66048.0,66047.0,1.18660955]
[1721769027219,0.01044,66049.0,66048.0,0.757025]
[1721769027496,0.01044,66049.0,66048.0,1.56581546]
[1721769027727,0.01044,66049.0,66048.0,2.05272546]
[1721769028332,0.01044,66049.0,66048.0,2.06672546]
[1721769028547,0.01044,66049.0,66048.0,2.06872546]
[1721769028767,0.01044,66049.0,66048.0,2.06772546]
[1721769028950,0.01044,66049.0,66048.0,2.65935364]
[1721769029151,0.01044,66049.0,66048.0,2.8958801]
[1721769029356,0.01044,66049.0,66048.0,2.377011]
[1721769029585,0.01044,66049.0,66048.0,2.693821]
[1721769029778,0.01044,66049.0,66048.0,2.99958904]
[1721769029979,0.01044,66049.0,66048.0,2.99954769]
[1721769030263,0.01044,66049.0,66048.0,2.89583631]
[1721769030702,0.01044,66049.0,66048.0,2.90983631]
[1721769030851,0.01044,66049.0,66048.0,3.12783631]
[1721769031059,0.00854,66055.0,66054.0,1.294237]
[1721769031270,0.00854,66055.0,66054.0,2.64945967]
[1721769031460,0.00854,66055.0,66054.0,3.52826098]
[1721769031678,0.00854,66055.0,66054.0,3.43871174]
[1721769032239,0.01053,66069.0,66068.0,0.636437]
[1721769032438,0.01053,66069.0,66068.0,2.35631104]
[1721769032664,0.01053,66069.0,66068.0,2.70375039]
[1721769032866,0.01053,66069.0,66068.0,2.65902904]
[1721769033197,0.01053,66069.0,66068.0,2.65899539]
[1721769033840,0.01053,66069.0,66068.0,2.65699539]
[1721769034017,0.01053,66069.0,66068.0,2.71486356]
[1721769034243,0.01053,66069.0,66068.0,2.71686356]
[1721769034655,0.01053,66069.0,66068.0,2.67299539]
[1721769034985,0.01053,66069.0,66068.0,2.67099539]
[1721769035390,0.01053,66069.0,66068.0,2.68499539]
[1721769035823,0.01053,66069.0,66068.0,2.68699539]
[1721769036022,0.01053,66069.0,66068.0,2.68499539]
[1721769036229,0.01053,66069.0,66068.0,2.38427739]
[1721769036549,0.01053,66069.0,66068.0,2.68699787]
[1721769037114,0.01053,66069.0,66068.0,2.63282556]
[1721769037328,0.01053,66069.0,66068.0,2.32810756]
[1721769037525,0.01053,66069.0,66068.0,2.32810555]
[1721769037723,0.01053,66069.0,66068.0,2.33010555]
[1721769038209,0.01053,66069.0,66068.0,2.37474529]
[1721769038670,0.01053,66069.0,66068.0,2.38368685]
[1721769039300,0.07063,66069.0,66068.0,0.179359]
[1721769039503,0.07063,66069.0,66068.0,0.028]
[1721769039504,0.298886,66069.0,66068.0,0.028]
[1721769039723,0.14753,66069.0,66068.0,0.028]
[1721769039936,0.14253,66069.0,66068.0,0.028]
[1721769040202,0.293886,66069.0,66068.0,0.028]
[1721769040416,0.293886,66069.0,66068.0,0.014]
[1721769040614,0.14253,66069.0,66068.0,0.014]
[1721769040820,0.14253,66069.0,66068.0,0.015]
[1721769041024,0.14253,66069.0,66068.0,0.001]
[1721769041234,0.14253,66069.0,66063.0,0.15137]
[1721769041442,0.293886,66069.0,66068.0,0.015]
[1721769042388,0.14253,66069.0,66068.0,0.011]
[1721769042636,0.14253,66069.0,66064.0,0.151367]
[1721769042839,0.293888,66069.0,66063.0,0.151369]
[1721769043046,0.14253,66069.0,66056.0,0.00910689]
[1721769043214,0.14253,66069.0,66064.0,0.07348942]
[1721769043390,0.14253,66069.0,66066.0,0.302727]
[1721769043595,0.14253,66069.0,66068.0,0.004]
[1721769044855,0.596599,66069.0,66068.0,0.004]
[1721769045054,0.596599,66069.0,66058.0,0.302761]
[1721769045055,0.151366,66065.0,66060.0,0.151377]
[1721769045259,0.302726,66067.0,66061.0,0.07348942]
[1721769045465,0.302726,66067.0,66050.0,0.1]
[1721769045466,0.0656,66067.0,66050.0,0.1]
[1721769045623,0.0656,66067.0,66048.0,0.302807]
[1721769045624,0.0656,66051.0,66048.0,0.302807]
[1721769045961,0.0656,66051.0,66050.0,0.1514]
[1721769046291,0.0656,66051.0,66050.0,0.4542]
[1721769046523,0.0656,66051.0,66042.0,0.302836]
[1721769046713,0.151401,66050.0,66044.0,0.22490142]
[1721769046908,0.151401,66050.0,66045.0,0.151411]
[1721769047112,0.216998,66051.0,66045.0,0.151411]
[1721769047320,0.216998,66051.0,66050.0,0.014]
[1721769047321,0.0656,66051.0,66050.0,0.014]
[1721769047492,0.216998,66051.0,66050.0,0.014]
[1721769047693,0.216998,66051.0,66045.0,0.151411]
[1721769048350,0.216998,66051.0,66045.0,0.157411]
[1721769048723,0.216998,66051.0,66045.0,0.15741]
[1721769048724,0.216999,66051.0,66045.0,0.15741]
[1721769048945,0.216999,66051.0,66045.0,0.006]
[1721769049306,0.302802,66050.0,66045.0,0.006]
[1721769049509,0.151409,66046.0,66045.0,0.006]
[1721769049738,0.0656,66051.0,66045.0,0.07948942]
[1721769049935,0.82259,66051.0,66050.0,0.005]
[1721769050357,0.151405,66048.0,66045.0,0.07948942]
[1721769050647,0.0656,66051.0,66045.0,0.07448942]
[1721769050857,0.0656,66051.0,66050.0,0.1514]
[1721769051060,0.0656,66051.0,66047.0,0.302813]
[1721769051216,0.0656,66051.0,66046.0,0.023]
[1721769051414,0.0656,66051.0,66050.0,0.002]
[1721769051822,0.06541782,66051.0,66050.0,0.002]
[1721769052407,0.06541782,66051.0,66050.0,0.001]
[1721769052607,0.06541782,66051.0,66046.0,0.023]
[1721769052851,0.06541782,66051.0,66050.0,0.001]
[1721769053337,0.06541782,66051.0,66046.0,0.023]
[1721769053734,0.06541782,66051.0,66050.0,0.008]
[1721769053940,0.36821782,66051.0,66050.0,0.008]
[1721769054146,0.36821782,66051.0,66050.0,0.002]
[1721769054370,0.36821782,66051.0,66050.0,0.009]
[1721769054707,0.36821782,66051.0,66050.0,0.1604]
[1721769055115,0.36821782,66051.0,66050.0,0.1514]
[1721769055953,0.36321782,66051.0,66050.0,0.1574]
[1721769056964,0.36321782,66051.0,66050.0,0.1644]
[1721769058198,0.36321782,66051.0,66050.0,0.4672]
[1721769058480,0.36321782,66051.0,66050.0,0.77]
[1721769059212,0.36321782,66051.0,66050.0,0.4672]
[1721769060320,0.3028,66051.0,66050.0,1.0728]
[1721769060523,0.3028,66051.0,66050.0,1.24281991]
[1721769061709,0.3028,66051.0,66050.0,1.22981991]
[1721769062053,0.3028,66051.0,66050.0,1.24381991]
[1721769062719,0.3028,66051.0,66050.0,0.95301991]
[1721769063170,0.3028,66051.0,66050.0,1.25581991]
[1721769064340,0.3028,66051.0,66050.0,1.84811991]
[1721769064546,0.3028,66051.0,66050.0,2.07386571]
[1721769064980,0.3028,66051.0,66050.0,2.07477871]
[1721769065419,0.3028,66051.0,66050.0,2.04877871]
[1721769065596,0.3028,66051.0,66050.0,2.07677871]
[1721769066165,0.08743,66069.0,66068.0,0.454077]
[1721769066166,0.00553,66069.0,66068.0,0.454077]
[1721769066390,0.00553,66069.0,66068.0,0.85328442]
[1721769066615,0.00553,66069.0,66068.0,1.55872042]
[1721769066825,0.00553,66069.0,66068.0,1.85574033]
[1721769067191,0.00553,66069.0,66068.0,1.88610033]
[1721769067798,0.00553,66069.0,66068.0,1.90010033]
[1721769067970,0.00553,66069.0,66068.0,1.88610033]
[1721769068170,0.00553,66069.0,66068.0,2.01182229]
[1721769068435,0.00553,66069.0,66068.0,1.90010033]
[1721769068642,0.00553,66069.0,66068.0,1.81010033]
[1721769069052,0.00553,66069.0,66068.0,1.80010033]
[1721769069252,0.00553,66069.0,66068.0,1.92582474]
[1721769069476,0.00553,66069.0,66068.0,1.81410033]
[1721769069672,0.00553,66069.0,66068.0,1.93983393]
[1721769070275,0.00553,66069.0,66068.0,1.93982474]
[1721769070548,0.00553,66069.0,66068.0,1.81410033]
[1721769070758,0.00553,66069.0,66068.0,1.82323752]
[1721769070960,0.00553,66069.0,66068.0,1.92323752]
[1721769071170,0.00553,66069.0,66068.0,1.82323752]
[1721769071347,0.00553,66069.0,66068.0,1.92323752]
[1721769071555,0.00553,66069.0,66068.0,1.82323752]
[1721769071760,0.00553,66069.0,66068.0,1.7497481]
[1721769074192,0.00553,66069.0,66068.0,1.6693881]
[1721769074452,0.00553,66069.0,66068.0,1.6463881]
[1721769074734,0.00553,66069.0,66068.0,1.6963881]
[1721769075095,0.00553,66069.0,66068.0,1.6683881]
[1721769075480,0.00553,66069.0,66068.0,1.6823881]
[1721769075978,0.00553,66069.0,66068.0,1.6913881]
[1721769076187,0.00553,66069.0,66068.0,1.7053881]
[1721769076576,0.00553,66069.0,66068.0,1.8193881]
[1721769076782,0.00553,66069.0,66068.0,2.0233881]
[1721769077201,0.00553,66069.0,66068.0,2.0373881]
[1721769077909,0.00553,66069.0,66068.0,2.4650061]
[1721769078138,0.00553,66069.0,66068.0,2.63708892]
[1721769078367,0.00553,66069.0,66068.0,2.62308892]
[1721769078590,0.00553,66069.0,66068.0,2.4973661]
[1721769078921,0.00553,66069.0,66068.0,2.5113661]
[1721769079053,0.00553,66069.0,66068.0,2.4973661]
[1721769079262,0.00553,66069.0,66068.0,2.5884161]
[1721769079460,0.00553,66069.0,66068.0,2.72814618]
[1721769080124,0.00553,66069.0,66068.0,2.6024161]
[1721769080532,0.00553,66069.0,66068.0,2.5864161]
[1721769080775,0.00553,66069.0,66068.0,2.71213585]
[1721769080985,0.00553,66069.0,66068.0,2.72613585]
[1721769081337,0.00553,66069.0,66068.0,2.6004161]
[1721769081514,0.00553,66069.0,66068.0,2.72613585]
[1721769081945,0.00553,66069.0,66068.0,2.6004161]
[1721769082488,0.00553,66069.0,66068.0,2.6024161]
[1721769082973,0.00553,66069.0,66068.0,2.72613565]
[1721769083553,0.00553,66069.0,66068.0,2.6004161]
[1721769084353,0.00553,66069.0,66068.0,2.6024161]
[1721769084577,0.00553,66069.0,66068.0,2.5004161]
[1721769084917,0.00553,66069.0,66068.0,2.6004161]
[1721769085119,0.00553,66069.0,66068.0,2.72614569]
[1721769085463,0.00553,66069.0,66068.0,2.6004161]
[1721769086087,0.00553,66069.0,66068.0,2.5004161]
[1721769086314,0.00553,66069.0,66068.0,2.62614569]
[1721769086475,0.00553,66069.0,66068.0,2.09347769]
[1721769086987,0.00553,66069.0,66068.0,1.9677481]
[1721769087192,0.00553,66069.0,66068.0,2.09347769]
[1721769088082,0.00553,66069.0,66068.0,1.9677481]
[1721769088509,0.00553,66069.0,66068.0,2.3704661]
[1721769088842,0.00553,66069.0,66068.0,2.0677481]
[1721769089652,0.00553,66069.0,66068.0,2.19346858]
[1721769089863,0.00553,66069.0,66068.0,2.0677481]
[1721769090568,0.00553,66069.0,66068.0,2.19347769]
[1721769092145,0.00553,66069.0,66068.0,2.09347769]
[1721769092355,0.00553,66069.0,66068.0,2.19347769]
[1721769094088,0.00553,66069.0,66068.0,2.19547769]
[1721769094810,0.00553,66069.0,66068.0,2.49819569]
[1721769095210,0.00553,66069.0,66068.0,2.19547769]
[1721769096037,0.00553,66069.0,66068.0,2.19546849]
[1721769097928,0.00553,66069.0,66068.0,2.19547769]
[1721769099304,0.00553,66069.0,66068.0,2.49819569]
[1721769099544,0.00553,66069.0,66068.0,2.49818649]
[1721769100399,0.00553,66069.0,66068.0,2.67113649]
[1721769101999,0.00553,66069.0,66068.0,2.56913649]
[1721769102169,0.00553,66069.0,66068.0,2.67113649]
[1721769102796,0.00853,66073.0,66072.0,1.81685]
[1721769102996,0.00853,66073.0,66072.0,2.21259953]
[1721769103280,0.00853,66073.0,66072.0,2.30364953]
[1721769103409,0.002,66089.0,66072.0,2.30364953]
[1721769103410,0.0807,66088.0,66087.0,1.059208]
[1721769103610,0.0807,66088.0,66087.0,1.28340022]
[1721769103807,0.0807,66088.0,66087.0,1.73603122]
[1721769104411,0.0628,66089.0,66088.0,1.361817]
[1721769104412,0.002,66089.0,66088.0,1.361817]
[1721769104636,0.002,66089.0,66088.0,1.63183691]
[1721769105213,0.00195,66089.0,66088.0,1.63183691]
[1721769105826,0.00195,66089.0,66088.0,1.64583691]
[1721769106639,0.00195,66089.0,66088.0,1.34321091]
[1721769106847,0.14785,66089.0,66088.0,1.34321091]
[1721769108523,0.14785,66089.0,66088.0,1.35216997]
[1721769108733,0.14785,66089.0,66088.0,1.20515006]
[1721769108967,0.14785,66089.0,66088.0,1.21915006]
[1721769115420,0.14785,66089.0,66088.0,1.36616997]
[1721769115639,0.08405,66089.0,66088.0,1.36616997]
[1721769120596,0.08405,66089.0,66088.0,0.91652406]
[1721769120828,0.14755,66089.0,66088.0,0.91652406]
[1721769121234,0.14755,66089.0,66088.0,1.08706822]
[1721769121380,0.14755,66089.0,66088.0,1.34482401]
[1721769121781,0.14755,66089.0,66088.0,1.02819801]
[1721769122197,0.14755,66089.0,66088.0,0.60761295]
[1721769122394,0.14755,66089.0,66088.0,0.89623895]
[1721769122605,0.14755,66089.0,66088.0,0.770565]
[1721769122808,0.14755,66089.0,66088.0,0.784565]
[1721769124719,0.14755,66089.0,66088.0,1.087191]
[1721769124919,0.14755,66089.0,66088.0,1.55983691]
[1721769125339,0.14755,66089.0,66088.0,1.25721091]
[1721769126516,0.14755,66089.0,66088.0,1.110191]
[1721769126717,0.14755,66089.0,66088.0,0.784565]
[1721769127084,0.14755,66089.0,66088.0,1.110191]
[1721769127322,0.14755,66089.0,66088.0,0.807565]
[1721769128115,0.14755,66089.0,66088.0,0.808478]
[1721769128495,0.14838,66089.0,66088.0,0.808478]
[1721769129099,0.14838,66089.0,66088.0,0.482852]
[1721769129866,0.14838,66089.0,66088.0,0.468852]
[1721769130646,0.14838,66089.0,66088.0,0.454852]
[1721769130954,0.14838,66089.0,66088.0,0.468852]
[1721769131156,0.14838,66089.0,66088.0,0.166226]
[1721769131363,0.14838,66089.0,66088.0,0.028913]
[1721769132372,0.14838,66089.0,66088.0,0.180226]
[1721769132575,0.14838,66089.0,66088.0,0.028913]
[1721769133267,0.299691,66089.0,66088.0,0.028913]
[1721769133469,0.602313,66089.0,66088.0,0.028913]
[1721769134305,0.602313,66089.0,66088.0,0.000913]
[1721769134899,0.594483,66067.0,66063.0,0.04488097]
[1721769135171,0.594483,66067.0,66062.0,0.002794]
[1721769135172,0.1404,66067.0,66062.0,0.002794]
[1721769135346,0.1404,66067.0,66056.0,0.302773]
[1721769135566,0.1404,66067.0,66060.0,0.302753]
[1721769135700,0.1404,66067.0,66062.0,0.151372]
[1721769136130,0.302686,66076.0,66053.0,0.44980291]
[1721769136131,0.151376,66061.0,66054.0,0.302779]
[1721769136304,0.151368,66064.0,66063.0,0.002]
[1721769136715,0.1487,66065.0,66063.0,0.002]
[1721769137144,0.1487,66065.0,66063.0,0.15637]
[1721769137347,0.1487,66065.0,66063.0,0.003]
[1721769137348,0.30274,66064.0,66063.0,0.003]
[1721769138117,0.30274,66064.0,66061.0,0.151375]
[1721769138320,0.30274,66064.0,66063.0,0.013]
[1721769138804,0.30274,66064.0,66061.0,0.151375]
[1721769139211,0.30274,66064.0,66061.0,0.158375]
[1721769139516,0.30274,66064.0,66062.0,0.151372]
[1721769139711,0.30274,66064.0,66061.0,0.158374]
[1721769139966,0.30274,66064.0,66063.0,0.007]
[1721769140348,0.30274,66064.0,66061.0,0.007]
[1721769140558,0.1454,66063.0,66061.0,0.007]
[1721769140758,0.30274,66062.0,66061.0,0.007]
[1721769141137,0.454112,66062.0,66061.0,0.007]
[1721769141484,0.454112,66062.0,66056.0,0.151386]
[1721769141711,1.205002,66062.0,66061.0,0.008]
[1721769141834,1.205002,66062.0,66061.0,0.017]
[1721769142226,1.205002,66062.0,66061.0,0.009]
[1721769142424,1.205002,66062.0,66061.0,0.018]
[1721769142645,1.70476691,66062.0,66061.0,0.018]
[1721769142889,1.79671637,66062.0,66061.0,0.018]
[1721769143039,1.79671637,66062.0,66061.0,0.009]
[1721769143249,1.70476691,66062.0,66061.0,0.009]
[1721769143466,1.70476691,66062.0,66061.0,0.019]
[1721769143872,0.151393,66053.0,66048.0,0.151404]
[1721769144049,0.44814,66052.0,66048.0,0.151404]
[1721769144453,0.44814,66052.0,66047.0,0.151407]
[1721769145125,0.454194,66051.0,66045.0,0.07348942]
[1721769145325,1.13993,66051.0,66038.0,0.302852]
[1721769145526,1.13993,66051.0,66040.0,0.151422]
[1721769145527,1.20513,66051.0,66040.0,0.151422]
[1721769145741,1.20513,66051.0,66041.0,0.002794]
[1721769145742,1.25513,66051.0,66041.0,0.002794]
[1721769146302,1.25513,66051.0,66050.0,0.007913]
[1721769146703,1.25513,66051.0,66050.0,0.000913]
[1721769146908,1.20513,66051.0,66050.0,0.000913]
[1721769147111,1.25513,66051.0,66050.0,0.001913]
[1721769147318,1.40214991,66051.0,66050.0,0.007913]
[1721769147511,1.70494591,66051.0,66050.0,0.007913]
[1721769147719,1.35214991,66051.0,66050.0,0.001913]
[1721769147893,0.44814,66051.0,66050.0,0.153313]
[1721769148094,0.44814,66051.0,66050.0,0.154313]
[1721769148532,0.44814,66051.0,66050.0,0.457113]
[1721769148728,0.44814,66051.0,66050.0,0.759913]
[1721769148929,0.44814,66051.0,66050.0,1.085713]
[1721769148930,0.30274,66051.0,66050.0,1.085713]
[1721769149850,0.30274,66051.0,66050.0,1.084713]
[1721769150239,0.30274,66051.0,66050.0,1.083713]